Cogmind - Beta 9.6 @@@ ROGUE MODE // 2020.05.17 @ 14:07:43 Player: Enzo Result: Destroyed by D-53 Grenadier with Mini Grenade Launcher Performance ------------- Evolutions (0) 0 Regions Visited (2) 400 Robots Destroyed (30) 150 Value Destroyed (480) 480 Prototype IDs (6) 120 Alien Tech Used (0) 0 Bonus (0) 0 TOTAL SCORE: 1150 Bonus ------- None Cogmind --------- Core Integrity 0/250 Matter 276/300 Energy 14/100 System Corruption 0% Temperature Cool (71) Movement Core (550) Ox10 Location -10/Mines Parts ------- > --- POWER (1) -------- (None) > --- PROPULSION (2) --- (None) > --- UTILITY (2) ------ High-capacity Storage Unit Structural Scanner > --- WEAPON (2) ------- (None) > --- INVENTORY (12) --- Large Storage Unit Signal Interpreter Improved Terrain Scanner Grenade Launcher Rocket Launcher Peak State ------------ > --- POWER ------------ Ion Engine > --- PROPULSION ------- Wheel Wheel > --- UTILITY ---------- Large Storage Unit Structural Scanner > --- WEAPON ----------- Particle Cannon Particle Cannon > --- INVENTORY -------- Wheel Signal Interpreter Improved Terrain Scanner Particle Cannon Particle Cannon Grenade Launcher Rocket Launcher [Rating: 10] Favorites ----------- Power Ion Engine Engine Ion Engine Propulsion Wheel Leg Aluminum Leg Wheel Wheel Utility Structural Scanner Device Structural Scanner Storage Large Storage Unit Weapon Beam Cannon Energy Gun Medium Laser Energy Cannon Beam Cannon Ballistic Gun Light Assault Rifle Launcher Rocket Launcher Build | -11 -10 -10 ------- Run | Scr Mat Min Slots Evolved . | . . . Power . | . . . Propulsion . | . . . Utility . | . . . Weapon . | . . . Parts Attached 33 | 6 19 8 Power 1 | 1 . . Engine 1 | 1 . . Core . | . . . Reactor . | . . . Propulsion 10 | 2 7 1 Treads . | . . . Leg 1 | . . 1 Wheel 9 | 2 7 . Hover . | . . . Flight . | . . . Utility 5 | 1 4 . Device 1 | . 1 . Storage 4 | 1 3 . Processor . | . . . Hackware . | . . . Protection . | . . . Artifact . | . . . Weapon 17 | 2 8 7 Energy Gun 1 | 1 . . Energy Cannon 11 | . 6 5 Ballistic Gun 2 | 1 1 . Ballistic Cannon . | . . . Launcher 3 | . 1 2 Special Weapon . | . . . Impact Weapon . | . . . Slashing Weapon . | . . . Piercing Weapon . | . . . Special Melee Weapon . | . . . Unidentified Prototypes . | . . . Parts Lost 8 | . . 8 Power 1 | . . 1 Propulsion 3 | . . 3 Utility . | . . . Weapon 4 | . . 4 Highest Loss Streak 6 | . . 6 Average Slot Usage (%) 96 | . 98 77 Engine 13 | . 14 2 Wheel 26 | . 27 12 Device 13 | . 13 14 Storage 14 | . 14 14 Energy Gun 1 | . 1 . Energy Cannon 24 | . 24 20 Ballistic Gun 1 | . 1 . Naked Turns . | . . . Heaviest Build 46 | 12 46 41 Greatest Support 26 | 26 20 10 Greatest Overweight (x) 4 | 1 2 4 Average Overweight (x) . | . . 3 Largest Inventory Capacity 12 | 6 12 12 Average Capacity 8 | 5 8 12 Most Carried 8 | 5 8 8 Average Carried 5 | 2 6 6 Final Capacity 12 | 6 12 12 Final Carried 7 | 5 7 5 Class Distribution -------------------- 100% | Mutant Dominant Class ---------------- Mutant | -10/Materials Mutant | -10/Mines Resources | -11 -10 -10 ----------- Run | Scr Mat Min Matter Collected 530 | 275 228 27 Remotely . | . . . Salvage Created 949 | 192 676 81 Parts 60 | 13 45 2 Haulers Intercepted 2 | . 2 . Recyclers Shooed . | . . . Parts Field Recycled . | . . . Retrieved Matter . | . . . Parts Self-Destructed . | . . . Prevented . | . . . Kills | -11 -10 -10 ------- Run | Scr Mat Min Combat Hostiles Destroyed 11 | . 9 2 Cannons 7 | . 6 1 AOE 4 | . 3 1 Classes Destroyed 9 | 2 7 . Worker 2 | . 2 . Builder 3 | . 3 . Tunneler 6 | 5 1 . Hauler 2 | . 2 . Recycler 2 | 1 1 . Operator 1 | . 1 . Watcher 3 | . 3 . Swarmer 3 | . 3 . Grunt 8 | . 6 2 Best Kill Streak 5 | 3 5 2 Combat Bots Only 3 | . 3 2 Max Kills in Single Turn 2 | 1 2 1 Gunslinging . | . . . Exploded 2 | . 2 1 Melee . | . . . Uniques/NPCs Destroyed . | . . . Combat | -11 -10 -10 -------- Run | Scr Mat Min Damage Taken 892 | . 238 654 Core 261 | . 32 229 Absorbed by Shields . | . . . Core Remaining (%) 100 | 100 . . Volleys Fired 68 | 15 45 8 Largest 2 | 2 2 2 Hottest 136 | 70 136 136 Shots Fired 126 | 30 87 9 Gun 38 | 30 8 . Cannon 84 | . 76 8 Launcher 4 | . 3 1 Special . | . . . Kinetic 19 | 15 4 . Thermal 103 | 15 80 8 Explosive 4 | . 3 1 Electromagnetic . | . . . Robot Hit Streak 7 | 7 7 5 Robot Miss Streak 6 | 6 2 1 Penetration Max . | . . . Secondary Targets . | . . . Shots Hit Robots 73 | 15 52 6 Core Hits 36 | 8 24 4 Critical Hits . | . . . Critical Kills . | . . . Critical Parts Destroyed . | . . . Melee Attacks . | . . . Impact . | . . . Slashing . | . . . Piercing . | . . . Sneak Attacks . | . . . Combat Hostiles . | . . . Follow-up Attacks . | . . . Damage Inflicted 1420 | 168 1083 169 Guns 191 | 168 23 . Cannons 1023 | . 922 101 Explosions 206 | . 138 68 Melee . | . . . Ramming . | . . . Kinetic 67 | 56 11 . Thermal 1147 | 112 934 101 Explosive 206 | . 138 68 Electromagnetic . | . . . Impact . | . . . Slashing . | . . . Piercing . | . . . Highest Corruption . | . . . Average Corruption . | . . . Corruption Purged . | . . . Overload Shots . | . . . Overflow Damage 30 | . 12 18 Projectiles 12 | . 12 . Explosions 18 | . . 18 Melee . | . . . Knockbacks . | . . . Impact . | . . . Kinetic . | . . . Secondary . | . . . Self-Inflicted Damage 74 | . 26 48 Shots 3 | . 2 1 Rammed . | . . . Targets Rammed . | . . . Kicked . | . . . Crushed . | . . . Highest Temperature 330 | 130 330 140 Average Temperature 85 | 53 93 65 Received Heat Transfer 162 | . 102 60 Effects 1 | . 1 . Damage (minor) 1 | . 1 . Siege Activations . | . . . Robots Corrupted . | . . . Combat Hostiles . | . . . Parts Fried . | . . . Impact Corruptions . | . . . Robots Melted . | . . . Combat Hostiles . | . . . Parts Melted 7 | . 7 . Heat Transferred 2368 | 333 1850 185 Parts Sabotaged . | . . . Parts Stolen . | . . . Parts Stripped . | . . . Power Chain Reactions . | . . . Missiles Intercepted . | . . . Alert | -11 -10 -10 ------- Run | Scr Mat Min Peak Influence 289 | 30 289 32 Average Influence 108 | 13 127 23 Maximum Alert Level 1 | . 1 . Low Security (%) 84 | 100 81 100 Level 1 15 | . 18 . Level 2 . | . . . Level 3 . | . . . Level 4 . | . . . Level 5 . | . . . High Security . | . . . Max Security . | . . . Squads Dispatched 1 | . 1 . Investigation . | . . . Extermination . | . . . Reinforcement 1 | . 1 . Assault . | . . . Garrison . | . . . Intercept . | . . . Construction Impeded . | . . . Haulers Reinforced . | . . . Stealth | -11 -10 -10 --------- Run | Scr Mat Min Distress Signals 2 | . 1 1 Communications Jammed . | . . . Distress Signals . | . . . Times Spotted 22 | . 17 5 Peak Tracking Total 4 | . 4 3 Tactical Retreats 1 | . 1 . Traps | -11 -10 -10 ------- Run | Scr Mat Min Traps Triggered 1 | . 1 . Indirectly . | . . . Trap Hack Attempts . | . . . Triggered . | . . . Disarmed . | . . . Reprogrammed . | . . . Reused . | . . . Traps Extracted . | . . . Installed . | . . . Triggered . | . . . Machines | -11 -10 -10 ---------- Run | Scr Mat Min Machines Disabled . | . . . Max in Single Turn . | . . . Machines Sabotaged . | . . . Garrisons Compromised . | . . . Overloaded Fab Kills . | . . . Fab Network Shutdowns . | . . . Hacking | -11 -10 -10 --------- Run | Scr Mat Min Machines Accessed 7 | . 7 . Terminals 6 | . 6 . Fabricators . | . . . Repair Stations 1 | . 1 . Recycling Units . | . . . Scanalyzers . | . . . Garrison Access . | . . . Total Hacks 20 | . 20 . Successful 14 | . 14 . Failed 6 | . 6 . Catastrophic 1 | . 1 . Database Lockouts . | . . . Manual 10 | . 10 . Terminals 18 | . 18 . Fabricators . | . . . Repair Stations 2 | . 2 . Recycling Units . | . . . Scanalyzers . | . . . Garrison Access . | . . . Terminal Hacks 9 | . 9 . Part Schematic 2 | . 2 . Prototype ID Bank 3 | . 3 . Alert Level 1 | . 1 . Unreport Threat 1 | . 1 . Locate Traps 2 | . 2 . Fabricator Hacks . | . . . Repair Station Hacks 2 | . 2 . Scan Component 1 | . 1 . Repair 1 | . 1 . Recycling Unit Hacks . | . . . Scanalyzer . | . . . Garrison Access Hacks . | . . . Unauthorized Hacks 3 | . 3 . Terminals 3 | . 3 . Track 1 | . 1 . Botnet 1 | . 1 . Operators 1 | . 1 . Fabricators . | . . . Repair Stations . | . . . Recycling Units . | . . . Scanalyzers . | . . . Garrison Access . | . . . Data Cores Recovered . | . . . Used . | . . . Hacking Detections 6 | . 6 . Full Trace Events . | . . . Feedback Events . | . . . Feedback Blocked . | . . . Robot Schematics Acquired . | . . . Robots Built . | . . . Matter . | . . . Time . | . . . Total Robot Build Rating . | . . . Part Schematics Acquired 2 | . 2 . Parts Built . | . . . Matter . | . . . Time . | . . . Total Part Build Rating . | . . . Parts Repaired 1 | . 1 . Time 26 | . 26 . Parts Recycled . | . . . Recycled Matter . | . . . Retrieved Matter . | . . . Retrieved Components . | . . . Parts Scanalyzed . | . . . Part Schematics Acquired . | . . . Parts Damaged . | . . . Bothacking | -11 -10 -10 ------------ Run | Scr Mat Min Used RIF Installer . | . . . Robots Hacked . | . . . Non-combat . | . . . Combat . | . . . Robot Hacks Applied . | . . . Relay Couplers Released . | . . . Robots Rewired . | . . . Allies Hacked . | . . . Hacks Repelled . | . . . Allies | -11 -10 -10 -------- Run | Scr Mat Min Total Allies 1 | . . 1 Largest Group 1 | . . 1 Highest-Rated Group 31 | . . 31 Highest-Rated Ally 31 | . . 31 Total Orders . | . . . Ally Attacks 1 | . . 1 Total Damage . | . . . Kills . | . . . Allies Corrupted . | . . . Allies Melted . | . . . Intel | -11 -10 -10 ------- Run | Scr Mat Min Robot Analysis Total . | . . . Derelict Logs Recovered . | . . . Drone Launches . | . . . Drone Recoveries . | . . . Exploration | -11 -10 -10 ------------- Run | Scr Mat Min Turns Passed 1053 | 117 866 70 Spaces Moved 780 | 68 678 34 Core 3 | 3 . . Treads . | . . . Legs . | . . . Wheels 777 | 65 678 34 Hover . | . . . Flight . | . . . Fastest Speed 50 | 50 80 110 Average Speed 87 | 87 86 119 Slowest Speed 120 | 90 100 120 Overloaded Moves . | . . . Propulsion Burnouts . | . . . Robots Hopped . | . . . Cave-ins Triggered . | . . . Exploration Rate (%) 37 | 3 98 12 Regions Visited 2 Branch Regions 1 Pre-discovered Areas 1 | . . 1 Known Exits Taken . | . . . Unknown Exits Taken 2 | 1 1 . Scrap Searched . | . . . Spaces Dug 7 | . 7 . Terrain Destroyed 31 | . 21 10 Melee . | . . . Projectile 1 | . . 1 AOE 30 | . 21 9 Actions | -11 -10 -10 --------- Run | Scr Mat Min Total 1019 | 96 870 53 Wait 108 | . 107 1 Move 778 | 67 677 34 Hop . | . . . Pick Up 13 | 6 7 . Fast Attach 17 | 6 9 2 Attach 4 | . 1 3 Detach 1 | . . 1 Swap 12 | . 9 3 Drop 18 | 2 15 1 Fire 68 | 15 45 8 Melee . | . . . Ram . | . . . Kick . | . . . Crush . | . . . Escape Stasis . | . . . Rewire . | . . . Trap . | . . . Miscellaneous . | . . . Route ------- -11/Scrapyard -10/Materials (discovered 5 exits: [*Mat x3] / [*Min x2]) -10/Mines History --------- Turn | Location | Event 27 | -11/Scrapyard | Discovered new exit (range 16) 118 | -11/Scrapyard | Entered Materials 227 | -10/Materials | Discovered new exit (range 11) 312 | -10/Materials | Build established: Mutant 345 | -10/Materials | Repaired Beam Cannon 359 | -10/Materials | Discovered new exit (range 10) 439 | -10/Materials | Discovered new exit (range 9) 546 | -10/Materials | Discovered new exit (range 8) 717 | -10/Materials | Discovered new exit (range 15) 984 | -10/Materials | Entered Mines 997 | -10/Mines | Escorted by a lone wolf Derelict 1005 | -10/Mines | Assembled infested the area 1017 | -10/Mines | Learned location of Storage (-9) 1049 | -10/Mines | Core integrity fell below 50% 1051 | -10/Mines | Core integrity fell below 20% 1054 | -10/Mines | Destroyed by D-53 Grenadier with Mini Grenade Launcher Last Messages --------------- 01003_ Acquired 6 matter. 01005_ ALERT: Infestation in the mines, dispatching Demolisher response squad. 01017_ UG-I3Z(g): "While you're wandering around here, I suggest you avoid Complex 0b10 Storage. Security there is tighter since Warlord's second failed attempt to raid it." World map updated: -9/Storage. 01041_ A derelict is hurriedly installing traps. 01042_ UG-I3Z(g): "Mission, incomplete...*fzzt*" 01042_ UG-I3Z(g) destroyed. 01043_ LD-8QY(g): "Hehe, this'll put a wrench in their mining defense operations..." 01043_ LD-8QY(g) slips into the shadows. 01044_ Particle Cannon destroyed. 01047_ The unstable cave ceiling collapses. 01048_ Wheel destroyed. 01048_ Particle Cannon destroyed. 01049_ The unstable cave ceiling collapses. 01052_ Aluminum Leg destroyed. 01052_ Particle Cannon destroyed. Map ----- +----------------------------------------------------+ | ????????????????????????????????????????????? | | ????????????????????????????????????????????? | | ????????????????????????????????????????????? | | ????????????????????????????????????????????? | | ????????????????????????????????????????????? | | ????????????????????????????????????????????? | | ????????????????????????????????????????????? | | ????????????????????????????????????????????? | | ????????????????????????????????????????????? | | ????????????????????????????????????????????? | | ????????????????????????????????????????????? | | ????????????????????????????????????????????? | | ????????????????????????????????????????????? | | ????????????????????????????????????????????? | | ??????????????????????????????? ???????????? | | ????####?????????????????????? ????????????? | | ???## ####?????????????????# ?????????????? | | ???# ##??????????????? ^%??????????????? | | ??## """ #??????????????^ #??????????????? | | ?## """ ########??????? #?#????????????? | | ?# """ ######? # ?^#????????????? | | ?# ## ## #????????????? | | ??# ##### #????????????? | | ??## ##???# ##??????????????? | | ???# ####????# * #??????????????? | | ??## ##??????# @ [ #??????????????? | | ?## #####??# #??????????????? | | ?# #??# < #??????????????? | | # %! = #??# d #??????????????? | | ## #??### ## d%##??????????????? | | ?# =% ####????########?## #???????????????? | | ?## ##?????????????????? #???????????????? | | ??# #????????????????????#???????????????? | | ??######????????????????????????????????????? | | ????????????????????????????????????????????? | | ????????????????????????????????????????????? | | ????????????????????????????????????????????? | | ????????????????????????????????????????????? | | ????????????????????????????????????????????? | | ????????????????????????????????????????????? | | ????????????????????????????????????????????? | | ????????????????????????????????????????????? | | ????????????????????????????????????????????? | | ????????????????????????????????????????????? | | ????????????????????????????????????????????? | | ????????????????????????????????????????????? | | ????????????????????????????????????????????? | | ????????????????????????????????????????????? | | ????????????????????????????????????????????? | | | +----------------------------------------------------+ Best States ------------- Heat Dissipation 25 Energy Generation 10 Energy Capacity 250 Matter Stores 300 Matter Capacity 300 Sight Range 16 Terrain Scan Density 10 Evasion (%) 44 Item Schematics ----------------- Datajack | -10/Materials | Hacked Wheel | -10/Materials | Hacked Robot Schematics ------------------ None Fabricated ------------ Nothing Alien Tech Used ----------------- None Achievements -------------- None Challenges ------------ None Game ------ Seed ExperimentalMobilePick Manual? 0 Play Time 00:20:52 Cumulative 30.9 hours Start 2020.05.17 @ 13:48:45 End 2020.05.17 @ 14:07:43 Sessions 1 Manual Loads 0 Difficulty Rogue Special Mode None Game No. 76 Rogue 76 Adventurer 0 Explorer 0 Win Type - Total 0 Types 0/0/0/0/0/0/0 Lore% 39 Gallery% 38 Achievement% 32 Wizard Run 0 Options --------- ASCII 0 Keyboard 0 Movement Numpad Keybinds 0 Fullscreen 2 Font 24/Smallcaps Map View 76x50 Tactical HUD 1 Map Filters NONE Filters NONE Steam 1 RUN: a6a87cea-eb97-4229-9ccf-42938cd5dc25